fUSD/lending_fUSD_20260308
["ID","MTS","AMOUNT","RATE_DAILY","PERIOD"]
[407969551,1772949043270,-2129.0,0.0001981,2]
[407969552,1772949043280,-168.0,0.00019868,2]
[407969553,1772949043290,-179.24,0.00019892,2]
[407969554,1772949043300,-2000.0,0.000199,2]
[407969555,1772949043310,-155.85,0.00019965,2]
[407969556,1772949043320,-150.0,0.0002,7]
[407969557,1772949043329,-800.97696343,0.0002,2]
[407969558,1772949043339,-667.35358706,0.00020011,2]
[407969559,1772949043348,-849.597787,0.00020161,7]
[407969560,1772949043359,-155.85,0.00020424,2]
[407969561,1772949043372,-160.0,0.00020481,2]
[407969562,1772949043381,-172.82949155,0.00020481,2]
[407969563,1772949043393,-155.85,0.00020882,2]
[407969564,1772949043404,-400.0,0.00021,2]
[407969565,1772949043415,-155.85,0.00021341,2]
[407969566,1772949043428,-23297.92423419,0.00021352,2]
[407969567,1772949043438,-45454.13609789,0.00021359,2]
[407969568,1772949043448,-529.0,0.00021464,2]
[407969569,1772949043457,-155.85,0.000218,2]
[407969570,1772949043467,-505.0,0.0002225,6]
[407969571,1772949043476,-484.25426362,0.00022669,2]
[407969572,1772949043485,-397.39,0.00023077,2]
[407969573,1772949043495,-628.63,0.00023207,2]
[407969574,1772949043505,-461.77,0.00023207,2]
[407969575,1772949043514,-3240.0,0.00023232,2]
[407969576,1772949043524,-5191.92,0.00023607,2]
[407969577,1772949043535,-266.6,0.00024386,2]
[407969578,1772949043545,-296.14,0.00024623,2]
[407969579,1772949043556,-1000.0,0.00024658,2]
[407969580,1772949043566,-150.0,0.00024658,2]
[407969581,1772949043576,-500.0,0.00024667,2]
[407969582,1772949043586,-500.0,0.00024667,2]
[407969583,1772949043596,-500.0,0.00024667,2]
[407969584,1772949043606,-500.0,0.00024899,2]
[407969585,1772949043616,-500.0,0.00024899,2]
[407969586,1772949043626,-500.0,0.00024899,2]
[407969587,1772949043635,-500.0,0.00024899,2]
[407969588,1772949043645,-500.0,0.00024899,2]
[407969589,1772949043655,-500.0,0.00024899,2]
[407969590,1772949043665,-23297.92423419,0.00025411,2]
[407969591,1772949043675,-45454.13609789,0.00025422,2]
[407969592,1772949043684,-150.0,0.0002589,2]
[407969593,1772949043694,-667.35358706,0.00025969,2]
[407969594,1772949043704,-500.0,0.00026115,2]
[407969595,1772949043713,-500.0,0.00026115,2]
[407969596,1772949043724,-500.0,0.00026115,2]
[407969597,1772949043733,-500.0,0.00026115,2]
[407969598,1772949043743,-500.0,0.00026115,2]
[407969599,1772949043753,-500.0,0.00026115,2]
[407969600,1772949043762,-582.21968853,0.00026115,2]
[407969601,1772949043772,-1982.394837,0.00026881,30]
[407969602,1772949043781,-161.6608612,0.00027171,2]
[407969603,1772949043792,-171.6826388,0.00027177,2]
[407969604,1772949043801,-150.0,0.00027185,2]
[407969605,1772949043811,-161.6608612,0.00027191,2]
[407969606,1772949043821,-171.6826388,0.00027202,2]
[407969607,1772949043831,-345.84452511,0.00027387,2]
[407969608,1772949043841,-300.0,0.00027397,2]
[407969609,1772949043851,-1000.0,0.00027397,20]
[407969610,1772949043860,-355.61,0.000274,14]
[407969611,1772949043870,-178.97,0.000274,7]
[407969612,1772949043880,-505.0,0.000275,11]
[407969613,1772949043890,-191.0945113,0.00028358,2]
[407969614,1772949043900,-343.97012035,0.00028358,2]
[407969615,1772949043910,-150.0,0.00028544,2]
[407969616,1772949043920,-160.04,0.00029,7]
[407969617,1772949043929,-366.900759,0.00029235,2]
[407969618,1772949043939,-23297.92423419,0.0002947,2]
[407969619,1772949043949,-45454.13609789,0.00029485,2]
[407969620,1772949043958,-187.01471562,0.00029921,120]
[407969621,1772949043968,-500.0,0.00029921,120]
[407969622,1772949043978,-500.0,0.00029921,30]
[407969623,1772949043987,-1342.0,0.00029943,2]
[407969624,1772949043997,-3502.0,0.00029943,2]
[407969625,1772949044008,-619.0,0.00029943,2]
[407969626,1772949044019,-1044.726,0.00029943,2]
[407969627,1772949044029,-1279.0,0.00029943,2]
[407969628,1772949044039,-928.516,0.00029943,2]
[407969629,1772949044049,-1212.0,0.00029943,2]
[407969630,1772949044061,-216.0,0.00029943,2]
[407969631,1772949044071,-150.0,0.00029943,2]
[407969632,1772949044080,-6036.963,0.00029943,2]
[407969633,1772949044090,-3746.0,0.00029943,2]
[407969634,1772949044101,-1398.562,0.00030179,2]
[407969635,1772949044111,-500.0,0.00031397,2]
[407969636,1772949044122,-680.0,0.00031535,30]
[407969637,1772949044132,-1000.0,0.00031598,2]
[407969638,1772949044142,-667.35358706,0.00031927,2]
[407969639,1772949044152,-452.33384016,0.00031928,2]
[407969640,1772949044162,-505.0,0.0003275,16]
[407969641,1772949044172,-1100.105,0.00032943,2]
[407969642,1772949044182,-619.0,0.00032943,2]
[407969643,1772949044193,-1042.0,0.00032943,2]
[407969644,1772949044202,-5992.0,0.00032943,2]
[407969645,1772949044213,-5085.41448601,0.00033275,2]
[407969646,1772949044223,-296.14,0.00033411,2]
[407969647,1772949044233,-23297.92423419,0.0003353,2]
[407969648,1772949044243,-151.0,0.00033545,14]
[407969649,1772949044253,-45454.13609789,0.00033548,2]
[407969650,1772949044263,-266.6,0.00033563,2]
[407969651,1772949044272,-614.85396196,0.00033953,4]
[407969652,1772949044283,-296.34,0.000346,30]
[407969653,1772949044293,-397.39,0.00034648,2]
[407969654,1772949044303,-1500.0,0.00034795,2]
[407969655,1772949044313,-160.04,0.000351,14]
[407969656,1772949044324,-178.97,0.000355,14]
[407969657,1772949044335,-156.90322644,0.00035704,30]
[407969658,1772949044346,-619.0,0.00035943,2]
[407969659,1772949044357,-1042.0,0.00035943,2]
[407969660,1772949044371,-5992.0,0.00035943,2]
[407969661,1772949044381,-882.97770763,0.000372,120]
[407969662,1772949044392,-882.97770763,0.000372,120]
[407969663,1772949044404,-23297.92423419,0.00037589,2]
[407969664,1772949044415,-45454.13609789,0.00037611,2]
[407969665,1772949044426,-528.10672179,0.00037862,120]
[407969666,1772949044442,-500.0,0.00037862,30]
[407969667,1772949044453,-500.0,0.00037863,2]
[407969668,1772949044464,-667.35358706,0.00037884,2]
[407969669,1772949044476,-500.0,0.0003797,120]
[407969670,1772949044486,-3485.95,0.0003797,120]
[407969671,1772949044495,-505.0,0.00038,21]
[407969672,1772949044506,-2584.769,0.00038027,50]
[407969673,1772949044516,-502.9,0.00038034,30]
[407969674,1772949044525,-369.41,0.00038034,30]
[407969675,1772949044535,-3003.0,0.00038364,5]
[407969676,1772949044544,-2404.0,0.00038364,5]
[407969677,1772949044555,-619.0,0.00038943,2]
[407969678,1772949044564,-1042.0,0.00038943,2]
[407969679,1772949044573,-882.97770763,0.00040505,120]
[407969680,1772949044583,-160.04,0.000415,14]
[407969681,1772949044592,-23297.92423419,0.00041648,15]
[407969682,1772949044602,-45454.13609789,0.00041674,15]
[407969683,1772949044611,-607.78015045,0.00041681,2]
[407969684,1772949044621,-1142.57012186,0.00041781,7]
[407969685,1772949044630,-500.0,0.00041781,120]
[407969686,1772949044641,-500.0,0.00041781,120]
[407969687,1772949044651,-500.0,0.00041781,120]
[407969688,1772949044661,-500.0,0.00041781,120]
[407969689,1772949044671,-500.0,0.00041781,120]
[407969690,1772949044681,-500.0,0.00041781,120]
[407969691,1772949044690,-500.0,0.00041781,120]
[407969692,1772949044699,-500.0,0.00041781,120]
[407969693,1772949044709,-500.0,0.00041781,120]
[407969694,1772949044718,-500.0,0.00041781,120]
[407969695,1772949044729,-500.0,0.00041781,120]
[407969696,1772949044739,-500.0,0.00041781,120]
[407969697,1772949044749,-500.0,0.00041781,120]
[407969698,1772949044759,-500.0,0.00041781,120]
[407969699,1772949044768,-500.0,0.00041781,120]
[407969700,1772949044778,-500.0,0.00041781,120]
[407969701,1772949044787,-500.0,0.00041781,120]
[407969702,1772949044797,-500.0,0.00041781,120]
[407969703,1772949044807,-500.0,0.00041781,120]
[407969704,1772949044817,-500.0,0.00041781,120]
[407969705,1772949044826,-500.0,0.00041781,120]
[407969706,1772949044836,-500.0,0.00041781,120]
[407969707,1772949044846,-500.0,0.00041781,120]
[407969708,1772949044855,-500.0,0.00041781,120]
[407969709,1772949044865,-500.0,0.00041781,120]
[407969710,1772949044874,-500.0,0.00041781,120]
[407969711,1772949044885,-500.0,0.00041781,120]
[407969712,1772949044896,-500.0,0.00041781,120]
[407969713,1772949044906,-500.0,0.00041781,120]
[407969714,1772949044916,-500.0,0.00041781,120]
[407969715,1772949044926,-500.0,0.00041781,120]
[407969716,1772949044936,-500.0,0.00041781,120]
[407969717,1772949044947,-500.0,0.00041781,120]
[407969720,1772949045204,-500.0,0.00041781,120]
[407969721,1772949045218,-500.0,0.00041781,120]
[407969722,1772949045228,-500.0,0.00041781,120]
[407969723,1772949045238,-500.0,0.00041781,120]
[407969724,1772949045248,-500.0,0.00041781,120]
[407969725,1772949045258,-500.0,0.00041781,120]
[407969726,1772949045267,-500.0,0.00041781,120]
[407969727,1772949045277,-500.0,0.00041781,120]
[407969728,1772949045287,-500.0,0.00041781,120]
[407969729,1772949045296,-500.0,0.00041781,120]
[407969730,1772949045305,-500.0,0.00041781,120]
[407969731,1772949045315,-500.0,0.00041781,120]
[407969732,1772949045324,-500.0,0.00041781,120]
[407969733,1772949045334,-500.0,0.00041781,120]
[407969734,1772949045343,-500.0,0.00041781,120]
[407969735,1772949045355,-500.0,0.00041781,120]
[407969736,1772949045367,-500.0,0.00041781,120]
[407969737,1772949045377,-500.0,0.00041781,120]
[407969738,1772949045386,-500.0,0.00041781,120]
[407969739,1772949045396,-500.0,0.00041781,120]
[407969740,1772949045407,-500.0,0.00041781,120]
[407969741,1772949045416,-500.0,0.00041781,120]
[407969742,1772949045425,-500.0,0.00041781,120]
[407969743,1772949045436,-500.0,0.00041781,120]
[407969744,1772949045445,-500.0,0.00041781,120]
[407969745,1772949045455,-500.0,0.00041781,120]
[407969746,1772949045464,-500.0,0.00041781,120]
[407969747,1772949045475,-500.0,0.00041781,120]
[407969748,1772949045484,-500.0,0.00041781,120]
[407969749,1772949045494,-500.0,0.00041781,120]
[407969750,1772949045503,-500.0,0.00041781,120]
[407969751,1772949045513,-500.0,0.00041781,120]
[407969752,1772949045522,-500.0,0.00041781,120]
[407969753,1772949045532,-500.0,0.00041781,120]
[407969754,1772949045541,-500.0,0.00041781,120]
[407969755,1772949045551,-500.0,0.00041781,120]
[407969756,1772949045560,-500.0,0.00041781,120]
[407969757,1772949045570,-500.0,0.00041781,120]
[407969758,1772949045579,-500.0,0.00041781,120]
[407969759,1772949045589,-500.0,0.00041781,120]
[407969760,1772949045598,-500.0,0.00041781,120]
[407969761,1772949045608,-500.0,0.00041781,120]
[407969762,1772949045617,-500.0,0.00041781,120]
[407969763,1772949045627,-500.0,0.00041781,120]
[407969764,1772949045637,-500.0,0.00041781,120]
[407969765,1772949045646,-500.0,0.00041781,120]
[407969766,1772949045655,-500.0,0.00041781,120]
[407969767,1772949045666,-500.0,0.00041781,120]
[407969768,1772949045675,-500.0,0.00041781,120]
[407969769,1772949045684,-500.0,0.00041781,120]
[407969770,1772949045693,-500.0,0.00041781,120]
[407969771,1772949045702,-500.0,0.00041781,120]
[407969772,1772949045711,-500.0,0.00041781,120]
[407969773,1772949045720,-500.0,0.00041781,120]
[407969774,1772949045729,-500.0,0.00041781,120]
[407969776,1772949045739,-500.0,0.00041781,120]
[407969777,1772949045748,-500.0,0.00041781,120]
[407969778,1772949045757,-500.0,0.00041781,120]
[407969779,1772949045767,-500.0,0.00041781,120]
[407969780,1772949045776,-500.0,0.00041781,120]
[407969781,1772949045786,-500.0,0.00041781,120]
[407969783,1772949045795,-500.0,0.00041781,120]
[407969784,1772949045804,-500.0,0.00041781,120]
[407969786,1772949045813,-500.0,0.00041781,120]
[407969788,1772949045821,-500.0,0.00041781,120]
[407969790,1772949045830,-500.0,0.00041781,120]
[407969791,1772949045839,-500.0,0.00041781,120]
[407969792,1772949045848,-500.0,0.00041781,120]
[407969793,1772949045857,-500.0,0.00041781,120]
[407969794,1772949045866,-500.0,0.00041781,120]
[407969795,1772949045875,-500.0,0.00041781,120]
[407969796,1772949045884,-500.0,0.00041781,120]
[407969797,1772949045893,-500.0,0.00041781,120]
[407969798,1772949045902,-500.0,0.00041781,120]
[407969799,1772949045911,-500.0,0.00041781,120]
[407969800,1772949045920,-500.0,0.00041781,120]
[407969801,1772949045929,-500.0,0.00041781,120]
[407969802,1772949045938,-500.0,0.00041781,120]
[407969803,1772949045947,-500.0,0.00041781,120]
[407969804,1772949045956,-500.0,0.00041781,120]
[407969805,1772949045965,-500.0,0.00041781,120]
[407969806,1772949045974,-500.0,0.00041781,120]
[407969807,1772949045983,-500.0,0.00041781,120]
[407969808,1772949045992,-500.0,0.00041781,120]
[407969809,1772949046001,-500.0,0.00041781,120]
[407969810,1772949046010,-500.0,0.00041781,120]
[407969811,1772949046019,-500.0,0.00041781,120]
[407969812,1772949046028,-500.0,0.00041781,120]
[407969813,1772949046037,-500.0,0.00041781,120]
[407969814,1772949046046,-500.0,0.00041781,120]
[407969815,1772949046055,-500.0,0.00041781,120]
[407969816,1772949046064,-500.0,0.00041781,120]
[407969817,1772949046075,-500.0,0.00041781,120]
[407969818,1772949046084,-500.0,0.00041781,120]
[407969819,1772949046093,-500.0,0.00041781,120]
[407969820,1772949046102,-500.0,0.00041781,120]
[407969821,1772949046111,-500.0,0.00041781,120]
[407969822,1772949046121,-500.0,0.00041781,120]
[407969823,1772949046130,-500.0,0.00041781,120]
[407969824,1772949046139,-500.0,0.00041781,120]
[407969825,1772949046148,-500.0,0.00041781,120]
[407969826,1772949046157,-500.0,0.00041781,120]
[407969827,1772949046166,-500.0,0.00041781,120]
[407969828,1772949046175,-500.0,0.00041781,120]
[407969829,1772949046184,-500.0,0.00041781,120]
[407969830,1772949046193,-997.0,0.00041781,120]
[407969831,1772949046202,-500.0,0.00041829,120]
[407969832,1772949046211,-500.0,0.00041829,120]
[407969833,1772949046220,-500.0,0.00041829,120]
[407969834,1772949046229,-500.0,0.00041829,120]
[407969835,1772949046239,-500.0,0.00041829,120]
[407969836,1772949046248,-500.0,0.00041829,120]
[407969837,1772949046257,-500.0,0.00041829,120]
[407969838,1772949046266,-500.0,0.00041829,120]
[407969839,1772949046276,-500.0,0.00041829,120]
[407969840,1772949046285,-512.0,0.00041829,120]
[407969841,1772949046294,-500.0,0.00041829,120]
[407969842,1772949046303,-500.0,0.00041829,120]
[407969843,1772949046312,-500.0,0.00041829,120]
[407969844,1772949046321,-500.0,0.00041829,120]
[407969845,1772949046330,-500.0,0.00041829,120]
[407969846,1772949046339,-500.0,0.00041829,120]
[407969847,1772949046348,-500.0,0.00041829,120]
[407969848,1772949046360,-500.0,0.00041829,120]
[407969849,1772949046369,-500.0,0.00041829,120]
[407969850,1772949046378,-500.0,0.00041829,120]
[407969851,1772949046387,-500.0,0.00041829,120]
[407969852,1772949046398,-500.0,0.00041829,120]
[407969853,1772949046408,-500.0,0.00041829,120]
[407969854,1772949046417,-500.0,0.00041829,120]
[407969855,1772949046427,-500.0,0.00041829,120]
[407969856,1772949046438,-500.0,0.00041829,120]
[407969857,1772949046448,-500.0,0.00041829,120]
[407969858,1772949046457,-500.0,0.00041829,120]
[407969859,1772949046466,-500.0,0.00041829,120]
[407969860,1772949046475,-500.0,0.00041829,120]
[407969861,1772949046484,-500.0,0.00041829,120]
[407969862,1772949046493,-500.0,0.00041829,120]
[407969863,1772949046502,-500.0,0.00041829,120]
[407969864,1772949046512,-500.0,0.00041829,120]
[407969865,1772949046520,-500.0,0.00041829,120]
[407969866,1772949046529,-500.0,0.00041829,120]
[407969867,1772949046538,-500.0,0.00041829,120]
[407969868,1772949046548,-500.0,0.00041829,120]
[407969869,1772949046557,-500.0,0.00041829,120]
[407969870,1772949046565,-500.0,0.00041829,120]
[407969871,1772949046575,-500.0,0.00041829,120]
[407969872,1772949046584,-500.0,0.00041829,120]
[407969873,1772949046593,-500.0,0.00041829,120]
[407969874,1772949046601,-500.0,0.00041829,120]
[407969875,1772949046610,-500.0,0.00041829,120]
[407969876,1772949046619,-500.0,0.00041829,120]
[407969877,1772949046628,-500.0,0.00041829,120]
[407969878,1772949046637,-500.0,0.00041829,120]
[407969879,1772949046647,-500.0,0.00041829,120]
[407969880,1772949046655,-500.0,0.00041829,120]
[407969881,1772949046664,-500.0,0.00041829,120]
[407969882,1772949046673,-500.0,0.00041829,120]
[407969883,1772949046682,-500.0,0.00041829,120]
[407969884,1772949046691,-500.0,0.00041829,120]
[407969885,1772949046700,-500.0,0.00041829,120]
[407969886,1772949046709,-500.0,0.00041829,120]
[407969887,1772949046718,-500.0,0.00041829,120]
[407969888,1772949046727,-500.0,0.00041829,120]
[407969889,1772949046737,-500.0,0.00041829,120]
[407969890,1772949046746,-500.0,0.00041829,120]
[407969891,1772949046755,-500.0,0.00041829,120]
[407969892,1772949046764,-500.0,0.00041829,120]
[407969893,1772949046773,-500.0,0.00041829,120]
[407969894,1772949046782,-500.0,0.00041829,120]
[407969895,1772949046792,-500.0,0.00041829,120]
[407969896,1772949046800,-500.0,0.00041829,120]
[407969897,1772949046809,-500.0,0.00041829,120]
[407969898,1772949046819,-500.0,0.00041829,120]
[407969899,1772949046828,-500.0,0.00041829,120]
[407969900,1772949046837,-500.0,0.00041829,120]
[407969901,1772949046846,-500.0,0.00041829,120]
[407969902,1772949046856,-500.0,0.00041829,120]
[407969903,1772949046865,-500.0,0.00041829,120]
[407969904,1772949046874,-500.0,0.00041829,120]
[407969905,1772949046883,-500.0,0.00041829,120]
[407969906,1772949046892,-500.0,0.00041829,120]
[407969907,1772949046901,-500.0,0.00041829,120]
[407969908,1772949046910,-500.0,0.00041829,120]
[407969909,1772949046919,-500.0,0.00041829,120]
[407969910,1772949046928,-500.0,0.00041829,120]
[407969911,1772949046938,-500.0,0.00041829,120]
[407969912,1772949046946,-500.0,0.00041829,120]
[407969913,1772949046955,-500.0,0.00041829,120]
[407969914,1772949046964,-500.0,0.00041829,120]
[407969915,1772949046973,-500.0,0.00041829,120]
[407969916,1772949046982,-500.0,0.00041829,120]
[407969917,1772949046991,-500.0,0.00041829,120]
[407969918,1772949047000,-500.0,0.00041829,120]
[407969919,1772949047009,-500.0,0.00041829,120]
[407969920,1772949047018,-500.0,0.00041829,120]
[407969921,1772949047028,-500.0,0.00041829,120]
[407969922,1772949047037,-500.0,0.00041829,120]
[407969923,1772949047046,-500.0,0.00041829,120]
[407969924,1772949047055,-500.0,0.00041829,120]
[407969925,1772949047064,-500.0,0.00041829,120]
[407969926,1772949047074,-500.0,0.00041829,120]
[407969927,1772949047084,-500.0,0.00041829,120]
[407969928,1772949047093,-500.0,0.00041829,120]
[407969929,1772949047102,-500.0,0.00041829,120]
[407969930,1772949047111,-500.0,0.00041829,120]
[407969931,1772949047119,-500.0,0.00041829,120]
[407969932,1772949047128,-500.0,0.00041829,120]
[407969933,1772949047137,-500.0,0.00041829,120]
[407969934,1772949047147,-500.0,0.00041829,120]
[407969935,1772949047156,-500.0,0.00041829,120]
[407969936,1772949047165,-500.0,0.00041829,120]
[407969937,1772949047174,-500.0,0.00041829,120]
[407969938,1772949047183,-500.0,0.00041829,120]
[407969939,1772949047192,-500.0,0.00041829,120]
[407969940,1772949047202,-500.0,0.00041829,120]
[407969941,1772949047211,-619.0,0.00041943,2]
[407969942,1772949047220,-1042.0,0.00041943,2]
[407969943,1772949047229,-500.0,0.00042199,120]
[407969944,1772949047239,-500.0,0.00042199,120]
[407969945,1772949047247,-333.0,0.00042199,120]
[407969946,1772949047257,-377.18,0.00042546,120]
[407969947,1772949047266,-277.06,0.00042546,120]
[407969948,1772949047274,-4000.0,0.0004274,14]
[407969949,1772949047284,-178.97,0.000428,14]
[407969950,1772949047292,-634.0,0.00042864,2]
[407969951,1772949047301,-150.0,0.00042864,2]
[407969952,1772949047309,-150.0,0.00042864,2]
[407969953,1772949047318,-150.0,0.00042864,2]
[407969954,1772949047327,-150.0,0.00042864,2]
[407969955,1772949047335,-150.0,0.00042864,2]
[407969956,1772949047345,-150.0,0.00042864,2]
[407969957,1772949047354,-157.0,0.00042864,2]
[407969958,1772949047366,-250.0,0.00043068,120]
[407969959,1772949047375,-250.0,0.00043068,120]
[407969960,1772949047384,-820.1437,0.00043107,2]
[407969961,1772949047393,-197.42,0.00043194,14]
[407969962,1772949047403,-505.0,0.0004325,26]
[407969963,1772949047412,-607.78015044,0.00043305,2]
[407969964,1772949047421,-164.0,0.00043449,2]
[407969965,1772949047430,-2240.9849,0.00043542,2]
[407969966,1772949047440,-222.17,0.00043739,14]
[407969967,1772949047449,-2000.0,0.000438,120]
[407969968,1772949047461,-715.44270042,0.00043808,120]
[407969969,1772949047471,-667.35358706,0.00043842,13]
[407969970,1772949047480,-2240.9849,0.00044086,2]
[407969971,1772949047489,-820.1437,0.00044184,2]
[407969972,1772949047500,-197.42,0.0004419,14]
[407969973,1772949047509,-2240.9849,0.0004463,2]
[407969974,1772949047519,-222.17,0.00044738,14]
[407969975,1772949047528,-607.78015044,0.00044929,2]
[407969976,1772949047537,-619.0,0.00044943,2]
[407969977,1772949047548,-1042.0,0.00044943,2]
[407969978,1772949047559,-2240.9849,0.00045175,2]
[407969979,1772949047571,-197.41917506,0.00045186,14]
[407969980,1772949047581,-820.1437,0.00045262,2]
[407969981,1772949047591,-23297.92423419,0.00045707,15]
[407969982,1772949047600,-2240.9852,0.00045719,2]
[407969983,1772949047610,-45454.13609789,0.00045737,15]
[407969984,1772949047619,-1000.0,0.00046015,30]
[407969985,1772949047629,-271.19576931,0.00046187,18]
[407969986,1772949047640,-271.19576931,0.00046187,18]
[407969987,1772949047650,-271.19576931,0.00046187,18]
[407969988,1772949047663,-271.19576931,0.00046187,18]
[407969989,1772949047673,-271.19576931,0.00046187,18]
[407969990,1772949047683,-271.19576931,0.00046187,18]
[407969991,1772949047692,-271.19576931,0.00046187,18]
[407969992,1772949047702,-271.19576931,0.00046187,18]
[407969993,1772949047712,-397.39,0.00046218,120]
[407969994,1772949047723,-1000.0,0.00046288,30]
[407969995,1772949047734,-296.39769017,0.00046388,30]
[407969996,1772949047746,-289.0,0.00046399,7]
[407969997,1772949047757,-271.19576931,0.00046516,18]
[407969998,1772949047767,-607.78015044,0.00046552,2]
[407969999,1772949047777,-1000.0,0.00046562,30]
[407970000,1772949047787,-150.0,0.00047088,30]
[407970001,1772949047797,-277.79685564,0.00047088,30]
[407970002,1772949047806,-152.46098348,0.00047122,60]
[407970003,1772949047816,-5800.0,0.00047133,14]
[407970004,1772949047826,-5800.0,0.00047142,14]
[407970005,1772949047836,-5800.0,0.0004715,14]
[407970006,1772949047846,-5800.0,0.00047159,14]
[407970007,1772949047859,-500.0,0.00047166,30]
[407970008,1772949047870,-500.0,0.00047166,30]
[407970009,1772949047880,-544.41552618,0.00047166,30]
[407970010,1772949047892,-5800.0,0.00047167,14]
[407970011,1772949047903,-150.24988052,0.00047175,2]
[407970012,1772949047914,-222.1,0.00047188,120]
[407970013,1772949047924,-172.96383299,0.00047188,120]
[407970014,1772949047935,-172.96383299,0.00047188,120]
[407970015,1772949047944,-5000.0,0.00047188,120]
[407970016,1772949047956,-13779.0,0.00047188,120]
[407970017,1772949047966,-403.08135,0.00047199,120]
[407970018,1772949047976,-160.04,0.000473,14]
[407970019,1772949047986,-208.01,0.0004747,2]
[407970020,1772949047996,-150.28,0.00047499,120]
[407970021,1772949048005,-350.0,0.00047639,8]
[407970022,1772949048017,-619.0,0.00047943,2]
[407970023,1772949048029,-1042.0,0.00047943,2]
[407970024,1772949048042,-607.78015044,0.00048176,2]
[407970025,1772949048052,-2000.0,0.000482,2]
[407970026,1772949048062,-150.28,0.00048319,120]
[407970027,1772949048071,-150.0,0.00048348,120]
[407970028,1772949048081,-150.0,0.00048348,120]
[407970029,1772949048090,-500.0,0.00048356,60]
[407970030,1772949048099,-500.0,0.00048356,60]
[407970031,1772949048109,-155.5992785,0.00048403,2]
[407970032,1772949048119,-505.0,0.000485,31]
[407970033,1772949048129,-182.90072492,0.00048648,15]
[407970034,1772949048139,-754.03,0.00048667,30]
[407970035,1772949048149,-754.03,0.00048667,30]
[407970036,1772949048159,-754.03,0.00048667,30]
[407970037,1772949048168,-754.03,0.00048667,30]
[407970038,1772949048177,-183.0,0.00048707,7]
[407970039,1772949048186,-785.87433,0.000488,20]
[407970040,1772949048196,-495.18591402,0.00048843,50]
[407970041,1772949048206,-374.1097302,0.00048867,11]
[407970042,1772949048215,-754.03,0.00048941,30]
[407970043,1772949048225,-754.03,0.00048941,30]
[407970044,1772949048234,-1000.0,0.00048996,14]
[407970045,1772949048247,-150.0,0.00049,120]
[407970046,1772949048257,-150.0,0.00049,120]
[407970047,1772949048267,-153.71495374,0.00049075,120]
[407970048,1772949048276,-1000.0,0.00049101,14]
[407970049,1772949048286,-1000.0,0.00049135,14]
[407970050,1772949048295,-150.28,0.00049139,120]
[407970051,1772949048305,-350.0,0.00049152,10]
[407970052,1772949048314,-1000.0,0.00049199,14]
[407970053,1772949048323,-754.03,0.00049215,30]
[407970054,1772949048333,-754.03,0.00049215,30]
[407970055,1772949048342,-2000.0,0.00049275,120]
[407970056,1772949048352,-8350.92088218,0.0004931,120]
[407970057,1772949048363,-500.0,0.00049314,120]